bitfinex-derivatives/quotes_ETHF0:USTF0_20250810
["timestamp","ask_amount","ask_price","bid_price","bid_amount"]
[1754833527182,1.5892,4187.2,4187.1,56.443]
[1754833527580,1.5892,4187.2,4187.1,33.4175]
[1754833527790,1.5892,4187.2,4187.1,55.0266]
[1754833529288,0.55,4187.2,4187.1,55.6791]
[1754833529497,0.7336,4187.2,4187.1,55.9547]
[1754833529987,0.458,4187.2,4187.1,58.99298656]
[1754833530487,0.85561,4187.5,4187.4,0.6013]
[1754833530694,1.03921,4187.5,4187.4,23.5628]
[1754833530985,1.03921,4187.5,4187.4,22.033]
[1754833531192,0.17081,4187.5,4187.4,23.5638]
[1754833531391,0.90601,4187.5,4187.4,23.5638]
[1754833531592,1.31481,4187.5,4187.4,23.5638]
[1754833532184,0.4088,4187.8,4187.5,0.47758]
[1754833532388,1.0392,4187.8,4187.7,1.5551]
[1754833532996,1.5892,4187.8,4187.7,1.2862]
[1754833534594,1.5892,4187.8,4187.7,1.5551]
[1754833536398,1.5892,4187.8,4187.7,0.7058]
[1754833536594,0.359,4187.6,4187.5,0.90348]
[1754833536899,1.5839,4187.6,4187.5,22.67978]
[1754833537098,1.5839,4187.6,4187.5,0.47758]
[1754833537394,1.5839,4187.6,4187.5,22.50858]
[1754833538394,1.309,4187.9,4187.8,1.21284]
[1754833538599,0.005,4187.9,4187.8,24.06484]
[1754833538897,1.309,4187.9,4187.8,24.06484]
[1754833539098,1.5889,4187.9,4187.8,24.06484]
[1754833539401,1.309,4187.9,4187.8,24.06052198]
[1754833539704,1.5889,4187.9,4187.8,22.50422198]
[1754833539901,1.5889,4187.9,4187.8,22.031]
[1754833540991,1.5889,4187.9,4187.8,22.2012]
[1754833541196,1.5889,4187.9,4187.8,22.4569]
[1754833541397,1.5889,4187.9,4187.8,22.7268]
[1754833542502,1.5889,4187.9,4187.8,22.031]
[1754833543499,1.5889,4187.9,4187.8,22.4569]
[1754833544301,0.6436,4187.9,4187.8,22.028]
[1754833544496,1.5889,4187.9,4187.8,22.028]
[1754833544696,1.5889,4187.9,4187.8,22.4539]
[1754833545901,1.5889,4187.9,4187.8,22.028]
[1754833546299,1.5889,4187.9,4187.8,22.1982]
[1754833546601,1.5889,4187.9,4187.8,22.4539]
[1754833547301,1.5889,4187.9,4187.8,22.7238]
[1754833548295,1.5889,4187.9,4187.8,23.3009]
[1754833548492,1.5889,4187.9,4187.8,23.5843]
[1754833548698,1.5889,4187.9,4187.8,22.7238]
[1754833548895,1.5889,4187.9,4187.8,22.028]
[1754833549098,1.5889,4187.9,4187.8,22.1982]
[1754833549296,1.5889,4187.9,4187.8,23.5843]
[1754833549695,1.5889,4187.9,4187.8,22.028]
[1754833550402,1.5889,4187.9,4187.8,22.4539]
[1754833550903,1.5889,4187.9,4187.8,23.3009]
[1754833551202,0.005,4187.9,4187.8,23.5843]
[1754833552999,0.7397,4187.9,4187.8,23.5843]
[1754833553199,1.309,4187.9,4187.8,23.5843]
[1754833553605,0.005,4187.9,4187.8,23.5843]
[1754833554099,0.005,4187.9,4187.8,25.72940676]
[1754833554100,1e-05,4187.9,4187.8,25.72940676]
[1754833554306,1e-05,4187.9,4187.8,23.5843]
[1754833554504,1e-05,4187.9,4187.8,26.71189341]
[1754833554907,0.9159,4189.2,4189.1,0.47739]
[1754833555100,1.5839,4189.2,4189.1,22.49939]
[1754833555402,1.5839,4189.2,4189.1,22.92529]
[1754833556104,1.5839,4189.2,4189.1,22.4479]
[1754833558807,1.1958,4189.2,4189.1,22.02]
[1754833559009,1.5839,4189.2,4189.1,22.02]
[1754833561707,1.3066,4188.6,4188.5,0.47746]
[1754833561908,1.5839,4188.6,4188.5,0.90336]
[1754833562801,1.5839,4188.6,4188.5,1.75036]
[1754833563001,0.4774,4189.1,4188.8,0.47742]
[1754833563208,0.6386,4189.0,4188.9,24.04972]
[1754833563506,1.5839,4189.0,4188.9,24.04972]
[1754833563710,1.304,4189.0,4188.9,24.04972]
[1754833564610,0.1812,4188.6,4188.5,1.17326]
[1754833564811,1.5839,4188.6,4188.5,23.18926]
[1754833565310,1.5919,4188.6,4188.5,22.015]
[1754833565505,0.9028,4187.9,4187.8,2.62286317]
[1754833565716,1.5901,4187.9,4187.8,22.015]
[1754833566312,1.5901,4187.9,4187.5,0.47757]
[1754833566617,1.5901,4187.7,4187.6,22.014]
[1754833566811,1.5901,4187.7,4187.6,22.4431]
[1754833567108,1.3217,4187.7,4187.6,23.3058]
[1754833567313,1.3217,4187.7,4187.6,23.584]
[1754833568309,1.3217,4187.7,4187.6,22.014]
[1754833568514,1.5901,4187.7,4187.6,22.7057]
[1754833568712,1.5901,4187.7,4187.6,22.014]
[1754833570410,1.5901,4187.7,4187.6,22.7057]
[1754833570608,1.5901,4187.7,4187.6,23.3058]
[1754833570811,1.5901,4187.7,4187.6,22.014]
[1754833571007,0.6368,4187.4,4187.3,1.44749]
[1754833571306,0.6368,4187.4,4187.1,32.9926]
[1754833571307,1.5901,4187.4,4187.1,33.47021]
[1754833571509,1.5901,4187.3,4187.2,22.4421]
[1754833571910,1.5901,4187.3,4187.2,0.2626]
[1754833572115,0.6368,4187.8,4187.7,0.4444]
[1754833572313,1.3217,4187.8,4187.7,23.3255]
[1754833572711,1.3217,4187.8,4187.7,23.583]
[1754833574014,1.5901,4187.8,4187.7,23.583]
[1754833574618,1.3217,4187.8,4187.7,23.583]
[1754833575117,1.5901,4187.8,4187.7,23.583]
[1754833575620,1.3217,4187.8,4187.7,23.583]
[1754833576317,1.5901,4187.8,4187.7,23.583]
[1754833576518,1.5901,4187.8,4187.7,23.3048]
[1754833576821,1.1332,4187.3,4187.2,1.2918]
[1754833577016,1.5901,4187.3,4187.2,24.06161]
[1754833577219,1.5901,4187.3,4187.2,22.014]
[1754833577513,1.3217,4187.2,4187.1,34.42422]
[1754833577714,1.3217,4187.2,4187.1,56.43722]
[1754833577917,0.9028,4187.2,4187.1,56.43722]
[1754833578217,0.9028,4187.2,4187.1,55.9596]
[1754833578218,1.3217,4187.2,4187.1,55.9596]
[1754833578424,1.5901,4187.2,4187.1,55.0056]
[1754833578625,1.5901,4187.2,4187.1,55.2631]
[1754833580028,1.5901,4187.2,4187.1,22.013]
[1754833581020,1.5901,4186.7,4186.6,0.6917]
[1754833581218,1.5901,4186.7,4186.6,22.7037]
[1754833582533,0.1885,4186.7,4186.6,23.582]
[1754833582820,1.3217,4187.2,4187.1,1.57]
[1754833583028,0.47758,4187.5,4187.1,1.57]
[1754833583029,0.8673,4187.5,4187.4,0.616]
[1754833583216,0.8673,4187.5,4187.4,23.582]
[1754833583416,0.4484,4187.5,4187.4,23.582]
[1754833583620,1.3217,4187.8,4187.7,1.57]
[1754833583824,1.3217,4187.8,4187.7,23.583]
[1754833584125,1.5901,4187.8,4187.7,22.7047]
[1754833584725,1.5901,4187.8,4187.7,23.583]
[1754833585027,1.5901,4187.8,4187.7,22.013]
[1754833585227,0.6788,4187.6,4187.5,22.012]
[1754833585527,1.3217,4187.6,4187.5,24.05958]
[1754833586127,1.3217,4187.6,4187.5,23.582]
[1754833586324,1.5901,4187.6,4187.5,23.582]
[1754833587029,1.3217,4187.6,4187.5,22.012]
[1754833587228,1.5901,4187.6,4187.5,22.4411]
[1754833587526,1.5901,4187.1,4187.0,1.76944]
[1754833587727,1.5901,4187.1,4187.0,24.05964]
[1754833588431,1.3217,4187.1,4187.0,24.05964]
[1754833589620,0.6368,4186.8,4186.7,0.91186]
[1754833589926,0.2684,4187.4,4186.7,23.10466]
[1754833590132,0.6368,4186.9,4186.8,1.3984]
[1754833590326,1.3217,4186.9,4186.8,1.57]
[1754833590522,1.3217,4186.9,4186.8,0.1716]
[1754833590730,0.6368,4186.5,4186.4,0.6917]
[1754833591032,1.5901,4186.5,4186.4,23.58]
[1754833591226,1.5901,4186.5,4186.4,0.6917]
[1754833591428,0.6368,4185.9,4185.6,0.2575]
[1754833591732,1.5901,4185.8,4185.7,22.009]
[1754833591929,1.5901,4185.8,4185.7,0.6917]
[1754833592222,1.5901,4185.8,4185.1,2.14532317]
[1754833592223,1.3217,4185.8,4185.1,0.2575]
[1754833592429,0.9028,4185.2,4185.1,1.57]
[1754833592727,1.3217,4185.2,4185.1,23.579]
[1754833592922,1.00366,4185.9,4185.8,0.616]
[1754833593124,1.79946,4185.9,4185.8,1.57]
[1754833593325,1.3217,4185.9,4185.8,1.57]
[1754833593722,1.5901,4185.9,4185.8,1.57]
[1754833593926,1.5901,4185.9,4185.5,22.009]
[1754833593927,0.47777,4185.8,4185.5,22.009]
[1754833594128,0.266,4185.6,4185.5,22.009]
[1754833594329,1.3217,4185.6,4185.5,23.579]
[1754833594629,1.5901,4185.6,4185.5,23.579]
[1754833594830,0.1885,4185.3,4185.2,22.01]
[1754833595126,0.6368,4185.0,4184.9,1.1307]
[1754833595331,1.3217,4185.0,4184.9,23.58]
[1754833595633,1.1332,4185.0,4184.0,2.14532317]
[1754833595823,1.19455,4185.4,4184.1,24.08397]
[1754833595824,0.4495,4184.2,4184.1,24.08397]
[1754833596021,0.7311,4184.2,4184.1,24.08397]
[1754833596333,1.3333,4184.2,4184.1,23.606]
[1754833596630,1.3333,4184.5,4184.4,1.594]
[1754833597433,0.1832,4183.8,4183.7,1.40821]
[1754833597733,1.3333,4183.8,4183.7,23.606]
[1754833598432,1.3333,4183.8,4183.7,23.339]
[1754833598628,1.5919,4183.8,4183.7,1.328]
[1754833598820,1.5919,4183.8,4183.7,23.342]
[1754833599019,1.3333,4183.8,4183.7,22.014]
[1754833599225,1.5919,4183.8,4183.7,23.82001]
[1754833599528,1.5919,4183.8,4183.7,23.608]
[1754833599729,1.5919,4183.8,4183.7,22.4759]
[1754833599932,1.5919,4183.8,4183.7,22.7567]
[1754833600132,1.5919,4183.8,4183.7,23.342]
[1754833600629,0.4591,4184.2,4184.1,0.1809]
[1754833600932,0.8856,4184.2,4184.1,0.7427]
[1754833601328,1.5919,4184.2,4184.1,0.4619]
[1754833603632,0.7063,4184.0,4183.7,0.87581]
[1754833603835,1.3333,4183.7,4183.6,1.80602]
[1754833604023,1.3333,4183.7,4183.6,23.82102]
[1754833604224,1.3333,4183.7,4183.6,24.08702]
[1754833604430,1.3333,4184.2,4184.1,1.313]
[1754833604630,1.3333,4184.2,4184.1,23.609]
[1754833604935,1.3333,4184.6,4184.5,1.594]
[1754833606441,1.3333,4185.0,4184.9,1.594]
[1754833606833,1.19433,4186.2,4184.6,0.47791]
[1754833606834,2.06978,4184.9,4184.6,0.47791]
[1754833607033,0.8856,4184.8,4184.7,0.4619]
[1754833607435,0.8856,4184.8,4184.7,0.7427]
[1754833607637,1.5919,4184.8,4184.7,0.7427]
[1754833609330,1.5919,4184.8,4184.7,1.328]
[1754833609531,1.3333,4184.8,4184.7,1.594]
[1754833610642,1.5919,4184.8,4184.7,1.594]
[1754833611645,1.3333,4184.8,4184.7,1.594]
[1754833613437,0.47781,4185.5,4185.2,0.47784]
[1754833613639,1.20888,4185.8,4185.7,0.6492]
[1754833613842,1.81108,4185.8,4185.7,0.9302]
[1754833614044,2.06968,4185.8,4185.7,0.9302]
[1754833614345,2.06968,4185.8,4185.7,1.594]
[1754833614545,1.3333,4185.8,4185.7,1.594]
[1754833614737,1.81106,4186.0,4185.9,0.6492]
[1754833615041,1.81106,4186.0,4185.9,1.594]
[1754833615242,0.9086,4186.0,4185.9,1.594]
[1754833615443,1.3333,4186.4,4186.3,1.594]
[1754833615743,1.5919,4186.5,4186.4,0.9302]
[1754833615948,1.5919,4186.5,4186.4,0.7427]
[1754833616835,1.5919,4186.5,4186.4,0.1809]
[1754833617038,1.19412,4187.0,4186.1,22.1939]
[1754833617039,0.4495,4186.2,4186.1,22.1939]
[1754833617242,0.7311,4186.2,4186.1,22.013]
[1754833617439,1.5919,4186.2,4186.1,22.7557]
[1754833618649,1.5919,4186.2,4185.8,0.47777]
[1754833618849,1.81107,4185.8,4185.7,0.4619]
[1754833619050,1.81107,4185.8,4185.7,1.328]
[1754833619249,1.81107,4185.8,4185.7,1.594]
[1754833619953,0.9086,4185.8,4185.7,1.594]
[1754833620358,0.4495,4186.1,4186.0,1.594]
[1754833620858,1.5919,4186.1,4186.0,0.4619]
[1754833621153,1.5919,4186.1,4186.0,0.1809]
[1754833621351,0.47768,4186.6,4185.7,0.7427]
[1754833621558,1.45256,4187.5,4186.6,0.3978]
[1754833621752,1.10465,4186.9,4186.8,1.594]
[1754833622155,1.81095,4186.9,4186.8,1.594]
[1754833622457,0.58538319,4188.3,4186.8,1.594]
[1754833622458,0.9649,4187.6,4186.9,0.47765]
[1754833622751,0.627,4186.8,4186.7,0.8595]
[1754833622956,1.5919,4186.8,4186.7,1.328]
[1754833623152,1.3333,4186.8,4186.7,1.594]
[1754833624350,0.4495,4186.8,4186.7,1.594]
[1754833624551,0.47765,4186.9,4186.7,0.6492]
[1754833624856,1.81095,4186.9,4186.8,1.594]
[1754833625458,2.08805,4186.9,4186.8,1.594]
[1754833625658,1.2948,4186.5,4186.4,0.7077]
[1754833625860,0.4666,4186.9,4186.8,1.5481]
[1754833626054,1.77245,4186.9,4186.8,1.5481]
[1754833626664,0.9006,4186.9,4186.8,1.5481]
[1754833626856,1.77241,4187.3,4187.2,0.62]
[1754833627062,1.77241,4187.3,4187.2,1.5481]
[1754833627957,2.04951,4187.3,4187.2,0.7077]
[1754833628149,2.04951,4187.3,4187.2,0.1758]
[1754833628350,2.04951,4187.3,4187.2,1.2913]
[1754833629355,2.04951,4187.3,4187.2,0.4484]
[1754833629654,1.77241,4187.3,4187.2,1.5481]
[1754833630163,0.9006,4187.8,4187.7,1.2913]
[1754833630363,1.2948,4187.8,4187.7,1.5481]
[1754833630858,1.5719,4187.8,4187.7,1.2913]
[1754833631259,2.04949,4187.4,4187.3,1.1064]
[1754833631453,2.04949,4187.4,4187.3,1.2913]
[1754833631751,1.77239,4187.4,4187.3,1.5481]
[1754833632558,2.04949,4187.4,4187.3,1.5481]
[1754833632760,1.77239,4187.4,4187.3,1.5481]
[1754833633550,1.19373,4188.3,4187.3,1.2913]
[1754833633761,0.6437,4187.7,4187.6,1.2755]
[1754833633966,1.0379,4187.7,4187.6,1.2755]
[1754833634259,1.2948,4187.7,4187.6,1.5481]
[1754833635455,1.5719,4187.7,4187.6,1.5481]
[1754833636551,0.6437,4187.3,4187.2,1.75311]
[1754833636759,1.2948,4187.3,4187.2,0.4351]
[1754833636956,1.5719,4187.3,4187.2,0.1758]
[1754833637152,1.5719,4187.3,4187.2,0.4484]
[1754833637559,1.5719,4187.3,4187.2,0.1758]
[1754833637758,1.2948,4187.0,4186.9,1.2913]
[1754833637958,1.2948,4187.0,4186.9,1.5481]
[1754833638957,1.2948,4187.0,4186.9,1.2913]
[1754833639163,1.5719,4187.0,4186.9,0.7077]
[1754833640459,1.5719,4187.0,4186.9,0.1758]
[1754833640657,0.6437,4186.7,4186.6,0.8926]
[1754833640857,1.5719,4186.6,4186.5,0.7077]
[1754833641058,1.5719,4186.6,4186.5,1.2913]
[1754833641263,1.2948,4186.6,4186.5,1.5481]
[1754833641659,0.4598,4186.6,4186.5,1.5481]
[1754833642358,1.2948,4186.6,4186.5,1.5481]
[1754833643058,1.5719,4186.6,4186.5,1.2913]
[1754833643259,1.2948,4186.3,4186.2,1.5481]
[1754833643455,1.19408,4187.1,4185.6,21.991]
[1754833643456,0.9006,4185.8,4185.7,1.62718]
[1754833643664,0.9006,4185.8,4185.7,2.02588]
[1754833643855,0.4598,4185.8,4185.7,2.02588]
[1754833644056,0.6437,4185.8,4185.7,1.5481]
[1754833644257,1.2948,4186.7,4186.6,1.5481]
[1754833644553,0.47761,4187.2,4186.6,1.5481]
[1754833644756,1.2948,4187.4,4187.3,0.62]
[1754833644963,1.2948,4187.4,4187.3,1.5481]
[1754833645359,0.2771,4187.8,4187.4,0.47759]
[1754833645559,0.434,4187.7,4187.6,0.62]
[1754833645764,1.51538,4188.4,4188.3,0.4351]
[1754833645954,2.04938,4188.4,4188.3,0.7077]
[1754833646160,1.2948,4187.8,4187.7,1.5481]
[1754833646758,1.2948,4187.8,4186.7,0.9281]
[1754833646759,0.47756,4187.7,4186.7,0.9281]
[1754833646966,0.9006,4187.7,4187.6,0.1758]
[1754833647169,0.2771,4188.2,4187.6,2.02566]
[1754833647362,0.6437,4187.8,4187.7,0.8926]
[1754833647563,1.2948,4187.8,4187.7,1.5481]
[1754833647765,0.9006,4187.8,4187.7,1.5481]
[1754833648064,0.3942,4188.1,4187.7,0.62]
[1754833648267,1.37812,4188.0,4187.9,1.5481]
[1754833648463,1.2948,4188.0,4187.9,1.5481]
[1754833649264,0.9006,4188.0,4187.9,1.5481]
[1754833649465,0.6437,4188.0,4187.9,1.5481]
[1754833649669,1.2948,4188.3,4188.2,1.5481]
[1754833649964,0.4598,4188.3,4188.2,1.5481]
[1754833650566,0.9006,4188.3,4188.2,1.5481]
[1754833650765,1.5719,4188.3,4188.2,1.5481]
[1754833650966,0.6437,4187.9,4187.8,1.2755]
[1754833651170,1.5719,4187.9,4187.8,1.2913]
[1754833651769,1.5719,4187.9,4187.8,1.5481]
[1754833652270,1.2948,4187.9,4187.8,1.5481]
[1754833653175,1.5719,4187.9,4187.8,0.7077]
[1754833655973,1.5719,4187.9,4187.8,1.5935]
[1754833655974,1.2948,4187.9,4187.8,1.5935]
[1754833657270,1.5567,4187.9,4187.8,0.8926]
[1754833657477,1.5567,4187.9,4187.8,0.7077]
[1754833658074,1.5567,4187.9,4187.8,1.3134]
[1754833658277,1.2948,4187.9,4187.8,1.5928]
[1754833658676,0.9006,4187.9,4187.8,1.5928]
[1754833659074,0.47752,4188.1,4187.8,0.6193]
[1754833659278,0.1708,4187.9,4187.8,0.6193]
[1754833659474,0.7107,4187.9,4187.8,0.6193]
[1754833659670,0.7107,4187.9,4187.8,1.5998]
[1754833659877,1.37643,4187.9,4187.8,1.5998]
[1754833660078,1.78823,4187.9,4187.8,1.5998]
[1754833660281,2.05013,4187.9,4187.8,1.5998]
[1754833660576,1.3107,4187.9,4187.8,1.5998]
[1754833661170,0.6,4188.2,4188.1,0.1727]
[1754833661381,0.7107,4188.5,4188.4,1.4336]
[1754833661685,1.3107,4188.5,4188.4,1.6063]
[1754833662377,1.5726,4188.5,4188.4,1.6063]
[1754833662774,1.3107,4188.5,4188.4,1.6063]
[1754833663774,1.3107,4188.5,4188.4,0.4636]
[1754833663982,0.1708,4187.9,4187.8,2.08384]
[1754833664284,0.2658,4188.4,4188.0,2.08382]
[1754833664479,1.3107,4188.4,4188.3,1.6063]
[1754833664986,1.61732,4188.9,4188.8,0.6258]
[1754833665190,1.78812,4188.9,4188.8,1.6063]
[1754833666892,1.11056,4188.5,4188.4,0.7212]
[1754833667079,2.81661706,4188.5,4188.4,0.7212]
[1754833667778,1.7882,4188.2,4188.1,1.6063]
[1754833667978,2.0501,4188.2,4188.1,1.6063]
[1754833668179,1.5726,4188.2,4188.1,1.6063]
[1754833668578,1.5726,4188.2,4188.1,0.4523]
[1754833668874,1.3107,4187.9,4187.8,1.80424]
[1754833669077,1.3107,4187.9,4187.8,1.3267]
[1754833669277,1.3107,4187.9,4187.5,0.47757]
[1754833669278,0.47754,4187.8,4187.5,0.47757]
[1754833669481,1.5726,4187.1,4187.0,0.47764]
[1754833669787,1.3107,4187.0,4186.9,1.80454]
[1754833669989,1.3107,4187.0,4186.9,2.08394]
[1754833670485,1.3107,4187.0,4186.9,1.6063]
[1754833671281,1.5726,4187.0,4186.9,1.6063]
[1754833671888,1.5726,4187.0,4186.9,0.7212]
[1754833672288,1.5726,4187.0,4186.9,1.3269]
[1754833672489,1.5726,4187.0,4186.9,1.6063]
[1754833673891,1.3107,4187.0,4186.9,1.6063]
[1754833674188,1.3107,4187.0,4186.5,0.1727]
[1754833674189,0.47768,4186.6,4186.5,0.1727]
[1754833674487,2.81683706,4186.6,4186.5,0.1727]
[1754833674782,1.3107,4186.0,4185.9,1.3269]
[1754833674988,1.5726,4185.9,4185.8,0.1727]
[1754833675288,1.5726,4185.9,4185.8,0.4523]
[1754833675491,1.5726,4185.9,4185.8,1.3269]
[1754833675691,1.5726,4185.9,4185.8,0.9054]
[1754833676687,1.5726,4185.6,4185.5,0.9054]
[1754833676888,1.5726,4185.6,4185.5,1.3269]
[1754833678696,1.5726,4185.6,4185.5,1.6063]
[1754833679493,2.33915706,4185.6,4185.5,1.3269]
[1754833679689,2.33915706,4185.6,4185.5,0.7212]
[1754833679882,0.66601,4185.5,4185.4,0.1727]
[1754833680088,2.05041,4185.5,4185.4,0.4523]
[1754833680290,2.05041,4185.5,4185.0,0.7009]
[1754833680291,1.3107,4185.1,4185.0,1.6063]
[1754833680784,1.5726,4185.1,4185.0,1.3269]
[1754833680988,1.5726,4185.1,4185.0,0.7212]
[1754833681189,1.5726,4185.1,4185.0,0.4523]
[1754833681387,1.5726,4185.1,4185.0,0.9054]
[1754833681598,1.3107,4185.1,4185.0,1.6063]
[1754833686002,1.5894,4185.1,4185.0,1.6063]
[1754833686506,1.5929,4184.8,4184.7,1.0855]
[1754833686697,2.07815706,4184.8,4184.7,0.1744]
[1754833686896,2.07815706,4184.8,4184.7,0.438]
[1754833687301,2.35945706,4184.8,4184.7,0.438]
[1754833687501,2.83734706,4184.8,4184.7,0.438]
[1754833687806,1.3142,4184.4,4184.3,1.5279]
[1754833688701,1.3142,4184.4,4183.5,21.984]
[1754833688702,1.3142,4184.0,4183.9,1.5279]
[1754833691801,0.459,4184.1,4184.0,1.0888]
[1754833691998,1.19461,4185.3,4184.5,1.5279]
[1754833691999,0.6387,4184.6,4184.5,1.5279]
[1754833692199,1.5929,4184.6,4184.5,0.438]
[1754833692806,1.3142,4184.6,4184.5,1.5279]
[1754833693303,1.3116,4184.6,4184.5,0.7028]
[1754833693510,1.3142,4184.3,4184.2,1.5279]
[1754833696008,1.5929,4184.3,4184.2,1.0855]
[1754833696210,1.5929,4184.3,4184.2,1.5279]
[1754833696409,1.3142,4184.3,4184.2,1.5279]
[1754833696813,1.5929,4184.3,4184.2,1.5279]
[1754833697011,1.24447706,4184.5,4184.2,0.8816]
[1754833697206,1.3142,4184.4,4184.3,1.5279]
[1754833697610,0.9164,4184.4,4184.3,1.5279]
[1754833697807,0.47791,4184.6,4184.2,0.47795]
[1754833697808,0.75561,4184.6,4184.5,0.6135]
[1754833698012,1.79211,4184.6,4184.5,1.5279]
[1754833699217,0.1813,4183.9,4183.8,1.2598]
[1754833699514,0.1813,4183.9,4183.8,2.00589]
[1754833699719,1.79214,4184.3,4184.2,1.5279]
[1754833700327,1.3142,4184.3,4184.2,1.5279]
[1754833701314,0.65923,4184.4,4184.3,1.5279]
[1754833701515,0.4626,4184.4,4184.3,1.5279]
[1754833701822,0.94053,4184.4,4184.3,1.5279]
[1754833702421,1.79213,4184.4,4184.3,1.5279]
[1754833702620,0.9164,4184.4,4184.3,2.00584]
[1754833702821,0.7403,4184.4,4184.3,2.00584]
[1754833703024,0.7403,4184.4,4184.3,1.5279]
[1754833703413,0.9164,4184.4,4184.3,1.5279]
[1754833703618,1.3142,4184.4,4184.3,1.5279]
[1754833705015,1.5929,4184.4,4184.3,1.5279]
[1754833705320,2.35945706,4184.4,4184.3,1.2598]
[1754833705526,2.35945706,4184.4,4184.3,0.7028]
[1754833705925,2.35945706,4184.4,4184.3,1.5279]
[1754833708422,2.35945706,4184.4,4184.3,1.2598]
[1754833708621,2.35945706,4184.4,4184.0,0.2681]
[1754833708622,1.79216,4184.1,4184.0,1.5279]
[1754833709020,2.07086,4184.1,4184.0,1.5279]
[1754833709715,2.07086,4184.1,4184.0,0.1743]
[1754833709921,1.7922,4183.8,4183.7,1.5279]
[1754833710225,2.83745706,4183.8,4183.7,1.5279]
[1754833711423,0.75575,4183.3,4183.2,0.2636]
[1754833711628,1.7923,4182.9,4182.8,1.5279]
[1754833711929,1.1132,4182.9,4182.8,0.7028]
[1754833712117,1.87975706,4182.9,4182.8,0.7028]
[1754833712625,2.83755706,4182.9,4182.8,0.7028]
[1754833713021,1.5929,4182.9,4182.8,1.2598]
[1754833713226,1.3142,4182.9,4182.8,1.5279]
[1754833713922,1.5929,4182.9,4182.8,1.5279]
[1754833714129,2.35945706,4182.9,4182.8,0.7028]
[1754833714326,1.3142,4182.8,4182.6,0.9144]
[1754833714526,1.3142,4182.8,4182.7,1.5279]
[1754833717224,1.3142,4182.8,4182.7,1.2598]
[1754833717426,1.5977,4182.8,4182.7,1.5312]
[1754833718733,2.09382,4182.7,4182.6,0.4416]
[1754833719329,1.6157,4182.6,4182.5,0.005]
[1754833722131,1.81046,4181.5,4181.4,1.46995141]
[1754833722322,2.86051706,4181.5,4181.4,1.02835141]
[1754833724639,2.86051706,4181.5,4181.4,1.74195141]
[1754833724835,2.86051706,4181.5,4181.4,1.46995141]
[1754833725036,2.86051706,4181.5,4181.4,1.02835141]
[1754833725533,2.86051706,4181.5,4181.4,1.46995141]
[1754833725735,2.86051706,4181.5,4181.4,2.33815141]
[1754833726440,2.57701706,4181.5,4181.4,1.02835141]
[1754833726639,2.86051706,4181.5,4181.4,1.02835141]
[1754833726833,2.86051706,4181.5,4181.4,1.20525141]
[1754833727032,2.86051706,4181.5,4181.4,1.46995141]
[1754833727337,2.86051706,4181.5,4181.4,1.02835141]
[1754833729529,2.86051706,4181.5,4181.4,0.44934141]
[1754833729734,2.86051706,4181.5,4180.6,0.2647]
[1754833729735,1.81055,4180.7,4180.6,1.3098]
[1754833729926,1.81055,4180.7,4180.6,1.5812]
[1754833730136,0.47834,4180.9,4180.6,0.6319]
[1754833730332,0.47834,4180.9,4180.8,0.6319]
[1754833730526,0.47834,4180.9,4180.8,1.5812]
[1754833730730,0.2812,4181.1,4180.8,0.6319]
[1754833730934,0.75951,4181.1,4181.0,1.5812]
[1754833731133,0.94681,4181.1,4181.0,1.5812]
[1754833731332,1.13471,4181.1,4181.0,1.5812]
[1754833731736,1.41141,4181.1,4181.0,1.5812]
[1754833731927,1.81051,4181.1,4181.0,1.5812]
[1754833732134,2.09401,4181.1,4181.0,1.5812]
[1754833733534,2.09401,4181.1,4181.0,0.7136]
[1754833735139,2.09401,4181.1,4181.0,0.4416]
[1754833735437,1.41145,4180.7,4180.6,1.5862]
[1754833735739,1.13475,4180.7,4180.6,1.5862]
[1754833735935,1.81055,4180.7,4180.6,1.5862]
[1754833736534,1.53385,4180.7,4180.6,1.5862]
[1754833736735,1.13475,4180.7,4180.6,1.5862]
[1754833738138,1.81055,4180.7,4180.6,1.5862]
[1754833738836,0.66565,4180.7,4180.6,0.005]
[1754833739042,1.81055,4180.7,4180.6,1.5862]
[1754833740040,2.09405,4180.7,4180.6,1.5862]
[1754833740237,1.81055,4180.7,4180.6,1.5862]
[1754833740744,1.41145,4180.7,4180.6,1.5862]
[1754833741039,1.81055,4180.7,4180.6,1.5862]
[1754833741636,0.47835,4180.7,4180.6,1.5862]
[1754833742030,0.94685,4180.7,4180.6,1.5862]
[1754833742232,0.2812,4181.4,4180.6,1.79986]
[1754833742432,0.75947,4181.4,4181.3,1.5812]
[1754833742641,1.53377,4181.4,4181.3,1.5812]
[1754833742843,0.005,4181.5,4181.4,1.5812]
[1754833743044,0.3802,4181.5,4181.4,1.5812]
[1754833743245,0.47832,4181.0,4180.7,0.47834]
[1754833743544,0.47832,4181.0,4180.6,0.005]
[1754833743545,1.81052,4181.0,4180.9,1.5812]
[1754833743943,0.47829,4181.3,4181.2,1.5812]
[1754833744530,1.81049,4181.3,4181.2,0.4489]
[1754833744735,2.09399,4181.3,4181.2,0.7136]
[1754833745438,0.5441,4181.2,4181.0,0.6721]
[1754833745643,1.5702,4181.1,4181.0,1.1247]
[1754833746033,1.5702,4181.1,4181.0,1.5856]